fUST/lending_fUST_20250723
["ID","MTS","AMOUNT","RATE_DAILY","PERIOD"]
[374308178,1753271450660,-460.0,0.00020547,2]
[374308180,1753271450670,-2383.92,0.00020547,2]
[374308182,1753271450679,-601.39,0.00020547,2]
[374308184,1753271450688,-460.0,0.00020547,2]
[374308185,1753271450697,-569.82,0.00020547,2]
[374308187,1753271450707,-460.0,0.00020547,2]
[374308189,1753271450716,-460.0,0.00020547,2]
[374308191,1753271450726,-460.0,0.00020547,2]
[374308193,1753271450736,-3741.98,0.00020547,2]
[374308195,1753271450746,-310.47202461,0.00020547,2]
[374308197,1753271450755,-460.0,0.00020547,2]
[374308199,1753271450764,-460.0,0.00020547,2]
[374308201,1753271450773,-460.0,0.00020547,2]
[374308203,1753271450783,-461.54,0.00020547,2]
[374308205,1753271450792,-460.0,0.00020547,2]
[374308207,1753271450801,-460.0,0.00020547,2]
[374308209,1753271450810,-561.31,0.00020547,2]
[374308211,1753271450819,-460.0,0.00020547,2]
[374308213,1753271450830,-702.92,0.00020547,2]
[374308215,1753271450839,-460.0,0.00020547,2]
[374308217,1753271450848,-596.71647768,0.00020547,2]
[374308219,1753271450856,-460.0,0.00020547,2]
[374308221,1753271450866,-460.0,0.00020547,2]
[374308223,1753271450876,-2755.26,0.00020547,2]
[374308225,1753271450885,-460.0,0.00020547,2]
[374308227,1753271450895,-460.0,0.00020547,2]
[374308229,1753271450904,-460.0,0.00020547,2]
[374308231,1753271450913,-832.55,0.00020547,2]
[374308233,1753271450922,-1381.04,0.00020547,2]
[374308235,1753271450931,-460.0,0.00020547,2]
[374308237,1753271450942,-520.15,0.00020547,2]
[374308239,1753271450951,-460.0,0.00020547,2]
[374308241,1753271450961,-13433.73,0.00020547,2]
[374308242,1753271450971,-460.0,0.00020547,2]
[374308244,1753271450981,-460.0,0.00020547,2]
[374308246,1753271450991,-687.04,0.00020547,2]
[374308248,1753271451000,-460.0,0.00020547,2]
[374308250,1753271451009,-2050.09,0.00020547,2]
[374308252,1753271451019,-604.35,0.00020547,2]
[374308254,1753271451028,-4389.62,0.00020547,2]
[374308256,1753271451037,-460.0,0.00020547,2]
[374308258,1753271451047,-825.15,0.00020547,2]
[374308260,1753271451056,-1532.26,0.00020547,2]
[374308262,1753271451066,-460.0,0.00020547,2]
[374308264,1753271451075,-460.0,0.00020547,2]
[374308266,1753271451084,-997.74,0.00020547,2]
[374308268,1753271451093,-460.0,0.00020547,2]
[374308270,1753271451102,-1325.09,0.00020547,2]
[374308272,1753271451112,-308.17876309,0.00020547,2]
[374308274,1753271451121,-474.63,0.00020547,2]
[374308276,1753271451131,-2665.18,0.00020547,2]
[374308278,1753271451140,-4378.04,0.00020547,2]
[374308279,1753271451149,-460.0,0.00020547,2]
[374308281,1753271451163,-3239.7,0.00020547,2]
[374308283,1753271451172,-460.0,0.00020547,2]
[374308285,1753271451182,-590.49,0.00020547,2]
[374308287,1753271451193,-581.91,0.00020547,2]
[374308289,1753271451202,-7617.98,0.00020547,2]
[374308291,1753271451211,-460.0,0.00020547,2]
[374308293,1753271451222,-460.0,0.00020547,2]
[374308295,1753271451233,-460.0,0.00020547,2]
[374308297,1753271451243,-460.0,0.00020547,2]
[374308299,1753271451253,-1197.74,0.00020547,2]
[374308301,1753271451264,-430.27128955,0.00020547,2]
[374308303,1753271451274,-460.0,0.00020547,2]
[374308305,1753271451284,-460.0,0.00020547,2]
[374308307,1753271451294,-460.0,0.00020547,2]
[374308309,1753271451304,-513.61,0.00020547,2]
[374308311,1753271451313,-460.0,0.00020547,2]
[374308313,1753271451323,-612.42,0.00020547,2]
[374308315,1753271451333,-580.32,0.00020547,2]
[374308317,1753271451342,-585.58,0.00020547,2]
[374308319,1753271451351,-460.0,0.00020547,2]
[374308321,1753271451360,-460.0,0.00020547,2]
[374308323,1753271451369,-460.0,0.00020547,2]
[374308325,1753271451379,-460.0,0.00020547,2]
[374308327,1753271451388,-477.83,0.00020547,2]
[374308329,1753271451396,-460.0,0.00020547,2]
[374308331,1753271451405,-460.0,0.00020547,2]
[374308333,1753271451414,-460.0,0.00020547,2]
[374308335,1753271451424,-728.44,0.00020547,2]
[374308336,1753271451434,-3395.88933311,0.00020564,2]
[374308338,1753271451443,-800.0,0.00020716,2]
[374308340,1753271451453,-2000.0,0.00020716,2]
[374308342,1753271451462,-2000.0,0.00020716,2]
[374308344,1753271451471,-1500.0,0.00020716,2]
[374308346,1753271451482,-2000.0,0.00020716,2]
[374308348,1753271451491,-234.86715884,0.00020762,2]
[374308350,1753271451500,-980.509,0.00020762,2]
[374308352,1753271451509,-178.723,0.00020762,2]
[374308354,1753271451518,-420.0,0.00020782,2]
[374308356,1753271451527,-2000.0,0.00020816,2]
[374308358,1753271451536,-2095.20899026,0.00020816,2]
[374308360,1753271451545,-2000.0,0.00020816,2]
[374308362,1753271451555,-460.0,0.00020821,2]
[374308364,1753271451564,-460.0,0.00020821,2]
[374308366,1753271451573,-460.0,0.00020821,2]
[374308368,1753271451583,-1482.52,0.00020821,2]
[374308370,1753271451592,-460.0,0.00020821,2]
[374308372,1753271451602,-460.0,0.00020821,2]
[374308374,1753271451611,-197.17826598,0.00020821,2]
[374308375,1753271451620,-460.0,0.00020821,2]
[374308377,1753271451629,-2750.74,0.00020821,2]
[374308379,1753271451639,-460.0,0.00020821,2]
[374308381,1753271451649,-460.0,0.00020821,2]
[374308383,1753271451658,-460.0,0.00020821,2]
[374308385,1753271451670,-460.0,0.00020821,2]
[374308387,1753271451679,-602.81,0.00020821,2]
[374308389,1753271451688,-510.04,0.00020821,2]
[374308391,1753271451698,-460.0,0.00020821,2]
[374308393,1753271451707,-460.0,0.00020821,2]
[374308395,1753271451717,-460.0,0.00020821,2]
[374308397,1753271451726,-2383.92,0.00020821,2]
[374308399,1753271451736,-601.39,0.00020821,2]
[374308401,1753271451745,-460.0,0.00020821,2]
[374308403,1753271451756,-569.82,0.00020821,2]
[374308405,1753271451765,-460.0,0.00020821,2]
[374308407,1753271451775,-460.0,0.00020821,2]
[374308409,1753271451784,-460.0,0.00020821,2]
[374308411,1753271451794,-3741.98,0.00020821,2]
[374308413,1753271451803,-460.0,0.00020821,2]
[374308415,1753271451813,-443.46108589,0.00020821,2]
[374308417,1753271451822,-461.54,0.00020821,2]
[374308430,1753271451936,-460.0,0.00020821,2]
[374308432,1753271451946,-561.31,0.00020821,2]
[374308434,1753271451956,-460.0,0.00020821,2]
[374308436,1753271451965,-702.92,0.00020821,2]
[374308438,1753271451974,-460.0,0.00020821,2]
[374308440,1753271451984,-460.0,0.00020821,2]
[374308442,1753271451994,-400.0,0.00020821,2]
[374308444,1753271452003,-2755.26,0.00020821,2]
[374308446,1753271452013,-460.0,0.00020821,2]
[374308448,1753271452023,-460.0,0.00020821,2]
[374308450,1753271452032,-460.0,0.00020821,2]
[374308452,1753271452042,-832.55,0.00020821,2]
[374308454,1753271452051,-1381.04,0.00020821,2]
[374308456,1753271452061,-460.0,0.00020821,2]
[374308458,1753271452070,-520.15,0.00020821,2]
[374308460,1753271452080,-460.0,0.00020821,2]
[374308462,1753271452090,-13433.73,0.00020821,2]
[374308464,1753271452099,-460.0,0.00020821,2]
[374308466,1753271452109,-460.0,0.00020821,2]
[374308468,1753271452118,-687.04,0.00020821,2]
[374308470,1753271452127,-460.0,0.00020821,2]
[374308472,1753271452136,-2050.09,0.00020821,2]
[374308474,1753271452146,-604.35,0.00020821,2]
[374308476,1753271452158,-4389.62,0.00020821,2]
[374308478,1753271452172,-460.0,0.00020821,2]
[374308479,1753271452181,-825.15,0.00020821,2]
[374308481,1753271452191,-1532.26,0.00020821,2]
[374308483,1753271452201,-460.0,0.00020821,2]
[374308485,1753271452211,-460.0,0.00020821,2]
[374308487,1753271452221,-997.74,0.00020821,2]
[374308489,1753271452230,-460.0,0.00020821,2]
[374308491,1753271452240,-1325.09,0.00020821,2]
[374308493,1753271452251,-474.63,0.00020821,2]
[374308494,1753271452260,-2665.18,0.00020821,2]
[374308495,1753271452270,-4378.04,0.00020821,2]
[374308496,1753271452279,-460.0,0.00020821,2]
[374308497,1753271452288,-3239.7,0.00020821,2]
[374308498,1753271452298,-460.0,0.00020821,2]
[374308499,1753271452307,-590.49,0.00020821,2]
[374308500,1753271452317,-581.91,0.00020821,2]
[374308501,1753271452326,-283.1817611,0.00020821,2]
[374308502,1753271452336,-7617.98,0.00020821,2]
[374308503,1753271452345,-460.0,0.00020821,2]
[374308504,1753271452354,-460.0,0.00020821,2]
[374308505,1753271452365,-460.0,0.00020821,2]
[374308506,1753271452374,-1197.74,0.00020821,2]
[374308507,1753271452384,-460.0,0.00020821,2]
[374308508,1753271452393,-513.61,0.00020821,2]
[374308509,1753271452402,-460.0,0.00020821,2]
[374308510,1753271452412,-460.0,0.00020821,2]
[374308511,1753271452422,-612.42,0.00020821,2]
[374308512,1753271452431,-580.32,0.00020821,2]
[374308514,1753271452440,-585.58,0.00020821,2]
[374308516,1753271452450,-460.0,0.00020821,2]
[374308518,1753271452459,-460.0,0.00020821,2]
[374308520,1753271452468,-460.0,0.00020821,2]
[374308522,1753271452477,-477.83,0.00020821,2]
[374308524,1753271452487,-460.0,0.00020821,2]
[374308526,1753271452497,-460.0,0.00020821,2]
[374308528,1753271452506,-460.0,0.00020821,2]
[374308529,1753271452515,-728.44,0.00020821,2]
[374308531,1753271452525,-160.0,0.00020916,2]
[374308533,1753271452534,-160.0,0.00020916,2]
[374308535,1753271452543,-160.0,0.00020916,2]
[374308538,1753271452553,-214.67886746,0.00020916,2]
[374308540,1753271452562,-231.11583447,0.00020916,2]
[374308542,1753271452572,-840.06856235,0.00020916,2]
[374308544,1753271452582,-160.0,0.00020916,2]
[374308546,1753271452592,-160.0,0.00020916,2]
[374308548,1753271452601,-215.84326551,0.00020916,2]
[374308550,1753271452610,-160.0,0.00020916,2]
[374308552,1753271452620,-476.696448,0.00020916,2]
[374308554,1753271452629,-526.15909479,0.00020916,2]
[374308556,1753271452638,-160.0,0.00020916,2]
[374308558,1753271452648,-12622.36869388,0.00020916,2]
[374308560,1753271452658,-160.0,0.00020916,2]
[374308562,1753271452668,-160.0,0.00020916,2]
[374308564,1753271452678,-3395.88933311,0.00020927,2]
[374308566,1753271452688,-260.0,0.00020998,2]
[374308568,1753271452699,-460.0,0.00021095,2]
[374308570,1753271452708,-1482.52,0.00021095,2]
[374308572,1753271452718,-460.0,0.00021095,2]
[374308574,1753271452727,-460.0,0.00021095,2]
[374308576,1753271452736,-460.0,0.00021095,2]
[374308578,1753271452745,-2750.74,0.00021095,2]
[374308580,1753271452755,-460.0,0.00021095,2]
[374308582,1753271452765,-460.0,0.00021095,2]
[374308583,1753271452774,-460.0,0.00021095,2]
[374308586,1753271452784,-460.0,0.00021095,2]
[374308587,1753271452793,-602.81,0.00021095,2]
[374308590,1753271452804,-510.04,0.00021095,2]
[374308592,1753271452813,-460.0,0.00021095,2]
[374308594,1753271452823,-460.0,0.00021095,2]
[374308596,1753271452833,-293.8,0.00021095,2]
[374308598,1753271452842,-2383.92,0.00021095,2]
[374308600,1753271452852,-601.39,0.00021095,2]
[374308602,1753271452861,-460.0,0.00021095,2]
[374308604,1753271452870,-569.82,0.00021095,2]
[374308606,1753271452879,-460.0,0.00021095,2]
[374308608,1753271452888,-460.0,0.00021095,2]
[374308610,1753271452898,-460.0,0.00021095,2]
[374308611,1753271452908,-3741.98,0.00021095,2]
[374308613,1753271452919,-460.0,0.00021095,2]
[374308615,1753271452928,-461.54,0.00021095,2]
[374308617,1753271452938,-460.0,0.00021095,2]
[374308619,1753271452948,-561.31,0.00021095,2]
[374308621,1753271452958,-460.0,0.00021095,2]
[374308624,1753271452968,-702.92,0.00021095,2]
[374308625,1753271452978,-460.0,0.00021095,2]
[374308627,1753271452989,-460.0,0.00021095,2]
[374308629,1753271453000,-2755.26,0.00021095,2]
[374308631,1753271453010,-460.0,0.00021095,2]
[374308634,1753271453021,-460.0,0.00021095,2]
[374308635,1753271453030,-460.0,0.00021095,2]
[374308637,1753271453040,-832.55,0.00021095,2]
[374308639,1753271453049,-1381.04,0.00021095,2]
[374308642,1753271453059,-520.15,0.00021095,2]
[374308643,1753271453068,-460.0,0.00021095,2]
[374308646,1753271453078,-13433.73,0.00021095,2]
[374308648,1753271453088,-460.0,0.00021095,2]
[374308650,1753271453097,-326.96769428,0.00021095,2]
[374308651,1753271453107,-687.04,0.00021095,2]
[374308653,1753271453118,-460.0,0.00021095,2]
[374308655,1753271453127,-2050.09,0.00021095,2]
[374308657,1753271453136,-604.35,0.00021095,2]
[374308659,1753271453146,-4389.62,0.00021095,2]
[374308661,1753271453159,-460.0,0.00021095,2]
[374308663,1753271453168,-825.15,0.00021095,2]
[374308665,1753271453178,-1532.26,0.00021095,2]
[374308668,1753271453189,-460.0,0.00021095,2]
[374308670,1753271453199,-460.0,0.00021095,2]
[374308671,1753271453209,-997.74,0.00021095,2]
[374308674,1753271453221,-460.0,0.00021095,2]
[374308676,1753271453232,-1325.09,0.00021095,2]
[374308678,1753271453244,-474.63,0.00021095,2]
[374308680,1753271453254,-2665.18,0.00021095,2]
[374308682,1753271453263,-4378.04,0.00021095,2]
[374308684,1753271453272,-460.0,0.00021095,2]
[374308686,1753271453282,-3239.7,0.00021095,2]
[374308688,1753271453291,-460.0,0.00021095,2]
[374308690,1753271453300,-590.49,0.00021095,2]
[374308692,1753271453310,-581.91,0.00021095,2]
[374308694,1753271453320,-7617.98,0.00021095,2]
[374308696,1753271453330,-460.0,0.00021095,2]
[374308698,1753271453339,-460.0,0.00021095,2]
[374308700,1753271453349,-1197.74,0.00021095,2]
[374308702,1753271453359,-460.0,0.00021095,2]
[374308704,1753271453368,-513.61,0.00021095,2]
[374308706,1753271453377,-460.0,0.00021095,2]
[374308708,1753271453387,-171.37755409,0.00021095,2]
[374308710,1753271453396,-612.42,0.00021095,2]
[374308712,1753271453405,-580.32,0.00021095,2]
[374308714,1753271453414,-585.58,0.00021095,2]
[374308716,1753271453424,-460.0,0.00021095,2]
[374308718,1753271453433,-460.0,0.00021095,2]
[374308720,1753271453443,-460.0,0.00021095,2]
[374308722,1753271453452,-477.83,0.00021095,2]
[374308724,1753271453462,-460.0,0.00021095,2]
[374308726,1753271453472,-460.0,0.00021095,2]
[374308728,1753271453482,-460.0,0.00021095,2]
[374308730,1753271453491,-728.44,0.00021095,2]
[374308732,1753271453500,-423.41,0.00021184,2]
[374308734,1753271453510,-784.99935626,0.00021195,2]
[374308736,1753271453520,-2500.0,0.00021264,2]
[374308738,1753271453529,-2500.0,0.00021264,2]
[374308740,1753271453539,-1000.0,0.00021264,2]
[374308742,1753271453548,-3395.88933311,0.0002131,2]
[374308744,1753271453557,-1017.05724765,0.00021364,2]
[374308745,1753271453566,-2500.0,0.00021364,2]
[374308747,1753271453575,-460.0,0.00021369,2]
[374308749,1753271453585,-1482.52,0.00021369,2]
[374308751,1753271453595,-460.0,0.00021369,2]
[374308753,1753271453605,-460.0,0.00021369,2]
[374308755,1753271453614,-352.85766504,0.00021369,2]
[374308757,1753271453623,-2750.74,0.00021369,2]
[374308759,1753271453632,-460.0,0.00021369,2]
[374308761,1753271453642,-460.0,0.00021369,2]
[374308763,1753271453652,-460.0,0.00021369,2]
[374308765,1753271453661,-460.0,0.00021369,2]
[374308767,1753271453671,-602.81,0.00021369,2]
[374308769,1753271453681,-510.04,0.00021369,2]
[374308771,1753271453690,-460.0,0.00021369,2]
[374308773,1753271453700,-460.0,0.00021369,2]
[374308775,1753271453709,-2383.92,0.00021369,2]
[374308777,1753271453718,-601.39,0.00021369,2]
[374308779,1753271453727,-460.0,0.00021369,2]
[374308781,1753271453737,-569.82,0.00021369,2]
[374308783,1753271453746,-460.0,0.00021369,2]
[374308785,1753271453755,-460.0,0.00021369,2]
[374308787,1753271453765,-460.0,0.00021369,2]
[374308789,1753271453774,-3741.98,0.00021369,2]
[374308791,1753271453784,-151.68,0.00021369,2]
[374308793,1753271453793,-461.54,0.00021369,2]
[374308795,1753271453802,-561.31,0.00021369,2]
[374308797,1753271453812,-460.0,0.00021369,2]
[374308799,1753271453822,-702.92,0.00021369,2]
[374308801,1753271453832,-460.0,0.00021369,2]
[374308803,1753271453842,-460.0,0.00021369,2]
[374308805,1753271453851,-2755.26,0.00021369,2]
[374308807,1753271453861,-460.0,0.00021369,2]
[374308809,1753271453870,-175.42131808,0.00021369,2]
[374308811,1753271453881,-460.0,0.00021369,2]
[374308813,1753271453890,-832.55,0.00021369,2]
[374308815,1753271453900,-1381.04,0.00021369,2]
[374308817,1753271453910,-520.15,0.00021369,2]
[374308819,1753271453920,-460.0,0.00021369,2]
[374308821,1753271453929,-13433.73,0.00021369,2]
[374308823,1753271453939,-460.0,0.00021369,2]
[374308825,1753271453948,-687.04,0.00021369,2]
[374308827,1753271453957,-460.0,0.00021369,2]
[374308829,1753271453967,-2050.09,0.00021369,2]
[374308831,1753271453976,-604.35,0.00021369,2]
[374308833,1753271453985,-4389.62,0.00021369,2]
[374308835,1753271453994,-460.0,0.00021369,2]
[374308837,1753271454004,-825.15,0.00021369,2]
[374308839,1753271454013,-460.0,0.00021369,2]
[374308841,1753271454023,-1532.26,0.00021369,2]
[374308843,1753271454032,-460.0,0.00021369,2]
[374308855,1753271454143,-997.74,0.00021369,2]
[374308857,1753271454157,-460.0,0.00021369,2]
[374308859,1753271454167,-1325.09,0.00021369,2]
[374308861,1753271454177,-474.63,0.00021369,2]
[374308863,1753271454187,-2665.18,0.00021369,2]
[374308865,1753271454196,-4378.04,0.00021369,2]
[374308867,1753271454207,-274.63969605,0.00021369,2]
[374308869,1753271454216,-3239.7,0.00021369,2]
[374308871,1753271454225,-460.0,0.00021369,2]
[374308873,1753271454235,-590.49,0.00021369,2]
[374308875,1753271454245,-581.91,0.00021369,2]
[374308877,1753271454254,-7617.98,0.00021369,2]
[374308879,1753271454264,-460.0,0.00021369,2]
[374308882,1753271454274,-460.0,0.00021369,2]
[374308883,1753271454284,-1197.74,0.00021369,2]
[374308885,1753271454294,-460.0,0.00021369,2]
[374308888,1753271454304,-513.61,0.00021369,2]
[374308890,1753271454314,-460.0,0.00021369,2]
[374308892,1753271454323,-612.42,0.00021369,2]
[374308894,1753271454335,-580.32,0.00021369,2]
[374308896,1753271454344,-460.0,0.00021369,2]
[374308898,1753271454353,-585.58,0.00021369,2]
[374308900,1753271454363,-460.0,0.00021369,2]
[374308902,1753271454372,-460.0,0.00021369,2]
[374308904,1753271454381,-477.83,0.00021369,2]
[374308906,1753271454391,-460.0,0.00021369,2]
[374308908,1753271454401,-460.0,0.00021369,2]
[374308910,1753271454410,-460.0,0.00021369,2]
[374308912,1753271454420,-728.44,0.00021369,2]
[374308914,1753271454429,-500.0,0.00021461,2]
[374308916,1753271454438,-500.0,0.00021461,2]
[374308918,1753271454448,-550.14382085,0.00021461,2]
[374308920,1753271454457,-500.0,0.00021461,2]
[374308922,1753271454467,-500.0,0.00021461,2]
[374308924,1753271454477,-500.0,0.00021461,2]
[374308926,1753271454487,-500.0,0.00021461,2]
[374308928,1753271454496,-500.0,0.00021461,2]
[374308930,1753271454507,-500.0,0.00021461,2]
[374308932,1753271454516,-500.0,0.00021461,2]
[374308934,1753271454531,-500.55543963,0.00021461,2]
[374308936,1753271454541,-472.58471755,0.00021469,2]
[374308938,1753271454550,-500.0,0.00021469,2]
[374308940,1753271454559,-641.49978633,0.00021469,2]
[374308942,1753271454569,-158.27645893,0.00021473,2]
[374308944,1753271454578,-500.0,0.00021473,2]
[374308946,1753271454588,-158.27900585,0.00021473,2]
[374308948,1753271454598,-500.0,0.00021473,2]
[374308951,1753271454608,-500.0,0.00021473,2]
[374308953,1753271454618,-274.27384637,0.00021473,2]
[374308955,1753271454627,-500.0,0.00021473,2]
[374308957,1753271454637,-280.22416713,0.00021473,2]
[374308959,1753271454646,-500.0,0.00021473,2]
[374308961,1753271454659,-500.0,0.00021473,2]
[374308963,1753271454668,-500.0,0.00021473,2]
[374308965,1753271454677,-500.8524135,0.00021473,2]
[374308967,1753271454686,-500.0,0.00021473,2]
[374308969,1753271454696,-500.0,0.00021473,2]
[374308971,1753271454706,-500.0,0.00021473,2]
[374308973,1753271454715,-500.0,0.00021473,2]
[374308974,1753271454724,-500.0,0.00021473,2]
[374308975,1753271454734,-500.0,0.00021473,2]
[374308976,1753271454744,-552.78730248,0.00021473,2]
[374308977,1753271454753,-500.0,0.00021473,2]
[374308978,1753271454764,-500.0,0.00021473,2]
[374308979,1753271454774,-500.0,0.00021473,2]
[374308980,1753271454784,-386.60069791,0.00021473,2]
[374308982,1753271454794,-500.0,0.00021484,2]
[374308984,1753271454805,-500.0,0.00021484,2]
[374308986,1753271454814,-500.0,0.00021484,2]
[374308988,1753271454824,-500.0,0.00021484,2]
[374308990,1753271454834,-500.0,0.00021484,2]
[374308992,1753271454844,-500.0,0.00021484,2]
[374308994,1753271454854,-500.0,0.00021484,2]
[374308996,1753271454865,-500.0,0.00021484,2]
[374308998,1753271454874,-500.0,0.00021484,2]
[374309000,1753271454884,-500.0,0.00021484,2]
[374309002,1753271454894,-500.0,0.00021484,2]
[374309004,1753271454904,-500.0,0.00021484,2]
[374309006,1753271454913,-500.0,0.00021484,2]
[374309008,1753271454923,-578.18285853,0.00021484,2]
[374309010,1753271454932,-500.0,0.00021484,2]
[374309012,1753271454941,-500.0,0.00021484,2]
[374309014,1753271454951,-500.0,0.00021484,2]
[374309016,1753271454960,-500.0,0.00021484,2]
[374309018,1753271454970,-500.0,0.00021484,2]
[374309020,1753271454979,-500.0,0.000215,2]
[374309022,1753271454989,-500.0,0.000215,2]
[374309024,1753271454998,-3395.88933311,0.000215,2]
[374309026,1753271455009,-156.64231511,0.00021504,2]
[374309029,1753271455020,-500.0,0.00021504,2]
[374309031,1753271455031,-360.0,0.00021546,2]
[374309033,1753271455040,-1482.52,0.00021643,2]
[374309035,1753271455050,-183.08,0.00021643,2]
[374309037,1753271455059,-460.0,0.00021643,2]
[374309038,1753271455068,-2750.74,0.00021643,2]
[374309040,1753271455078,-460.0,0.00021643,2]
[374309042,1753271455088,-460.0,0.00021643,2]
[374309044,1753271455097,-474.22956193,0.00021643,2]
[374309046,1753271455107,-460.0,0.00021643,2]
[374309048,1753271455116,-602.81,0.00021643,2]
[374309050,1753271455126,-510.04,0.00021643,2]
[374309052,1753271455135,-460.0,0.00021643,2]
[374309054,1753271455145,-460.0,0.00021643,2]
[374309057,1753271455155,-2383.92,0.00021643,2]
[374309058,1753271455167,-601.39,0.00021643,2]
[374309060,1753271455178,-460.0,0.00021643,2]
[374309062,1753271455187,-569.82,0.00021643,2]
[374309064,1753271455196,-460.0,0.00021643,2]
[374309066,1753271455206,-460.0,0.00021643,2]
[374309068,1753271455217,-211.5186869,0.00021643,2]
[374309070,1753271455227,-3741.98,0.00021643,2]
[374309073,1753271455238,-461.54,0.00021643,2]
[374309075,1753271455249,-561.31,0.00021643,2]
[374309076,1753271455258,-460.0,0.00021643,2]
[374309079,1753271455269,-702.92,0.00021643,2]
[374309081,1753271455278,-460.0,0.00021643,2]
[374309082,1753271455287,-460.0,0.00021643,2]
[374309084,1753271455297,-2755.26,0.00021643,2]
[374309086,1753271455307,-460.0,0.00021643,2]
[374309089,1753271455317,-460.0,0.00021643,2]
[374309090,1753271455327,-832.55,0.00021643,2]
[374309093,1753271455337,-1381.04,0.00021643,2]
[374309095,1753271455348,-520.15,0.00021643,2]
[374309097,1753271455357,-460.0,0.00021643,2]
[374309099,1753271455367,-13433.73,0.00021643,2]
[374309101,1753271455376,-460.0,0.00021643,2]
[374309103,1753271455386,-687.04,0.00021643,2]
[374309105,1753271455396,-2050.09,0.00021643,2]
[374309107,1753271455405,-460.0,0.00021643,2]
[374309109,1753271455415,-604.35,0.00021643,2]
[374309111,1753271455424,-4389.62,0.00021643,2]
[374309113,1753271455434,-460.0,0.00021643,2]
[374309115,1753271455443,-825.15,0.00021643,2]
[374309117,1753271455453,-460.0,0.00021643,2]
[374309119,1753271455462,-1532.26,0.00021643,2]
[374309121,1753271455472,-460.0,0.00021643,2]
[374309123,1753271455482,-997.74,0.00021643,2]
[374309125,1753271455492,-460.0,0.00021643,2]
[374309127,1753271455501,-1325.09,0.00021643,2]
[374309129,1753271455511,-474.63,0.00021643,2]
[374309131,1753271455522,-2665.18,0.00021643,2]
[374309133,1753271455531,-4378.04,0.00021643,2]
[374309135,1753271455540,-3239.7,0.00021643,2]
[374309137,1753271455550,-460.0,0.00021643,2]
[374309139,1753271455559,-590.49,0.00021643,2]
[374309141,1753271455569,-581.91,0.00021643,2]
[374309143,1753271455579,-7617.98,0.00021643,2]
[374309145,1753271455592,-460.0,0.00021643,2]
[374309147,1753271455602,-1197.74,0.00021643,2]
[374309149,1753271455612,-513.61,0.00021643,2]
[374309151,1753271455622,-460.0,0.00021643,2]
[374309153,1753271455631,-612.42,0.00021643,2]
[374309155,1753271455640,-580.32,0.00021643,2]
[374309157,1753271455649,-460.0,0.00021643,2]
[374309159,1753271455659,-585.58,0.00021643,2]
[374309161,1753271455669,-460.0,0.00021643,2]
[374309163,1753271455680,-460.0,0.00021643,2]
[374309165,1753271455690,-477.83,0.00021643,2]
[374309167,1753271455699,-460.0,0.00021643,2]